bitfinex/quotes_SOLUSD_20251124
["timestamp","ask_amount","ask_price","bid_price","bid_amount"]
[1763959333283,0.83141366,131.69,131.66,2.95896186]
[1763959333673,0.83141366,131.69,131.67,2.95896186]
[1763959334874,0.16141366,131.69,131.68,2.95896186]
[1763959335078,0.83141366,131.69,131.68,2.95896186]
[1763959335592,0.83141366,131.69,131.67,6.33896186]
[1763959337281,0.83141366,131.69,131.67,3.38]
[1763959337496,0.16627978,131.68,131.67,3.38]
[1763959337793,0.88627978,131.68,131.67,2.95896186]
[1763959338492,0.16627978,131.68,131.67,65.14724182]
[1763959338696,0.16627978,131.68,131.67,68.52724182]
[1763959338872,0.16627978,131.68,131.67,67.85724182]
[1763959339282,0.16627978,131.68,131.67,68.52724182]
[1763959339487,0.16627978,131.68,131.67,67.09776738]
[1763959340905,0.88627978,131.68,131.67,67.09776738]
[1763959341073,0.88627978,131.68,131.67,60.75880552]
[1763959341281,0.88627978,131.68,131.67,63.71776738]
[1763959341776,0.16627978,131.68,131.67,63.71776738]
[1763959343812,0.16627978,131.68,131.67,60.75880552]
[1763959343996,0.16627978,131.68,131.67,63.71776738]
[1763959344688,0.16627978,131.68,131.67,65.3814646]
[1763959349699,0.88627978,131.68,131.67,60.75880552]
[1763959351609,0.16627978,131.68,131.66,21.50096]
[1763959351800,0.16627978,131.68,131.67,6.05213352]
[1763959352003,0.16627978,131.68,131.66,4.62265908]
[1763959352004,0.88627978,131.68,131.66,4.62265908]
[1763959352182,0.16627978,131.68,131.66,4.62265908]
[1763959352511,0.16627978,131.68,131.67,4.62265908]
[1763959352905,0.16627978,131.68,131.67,5.29265908]
[1763959353302,0.16627978,131.68,131.67,8.67265908]
[1763959353906,0.16627978,131.68,131.67,8.00265908]
[1763959355121,0.16627978,131.68,131.67,8.67265908]
[1763959355301,0.16627978,131.68,131.67,8.00265908]
[1763959357394,0.33207242,131.68,131.67,8.00265908]
[1763959358418,0.33207242,131.68,131.67,8.67265908]
[1763959358597,0.33207242,131.68,131.67,8.00265908]
[1763959359301,0.16579264,131.68,131.67,8.00265908]
[1763959361322,0.16579264,131.68,131.67,68.7614646]
[1763959363807,0.16579264,131.68,131.67,70.19093904]
[1763959364123,0.16579264,131.68,131.67,77.78568347]
[1763959364901,0.35313126,131.7,131.69,60.429819]
[1763959365230,0.35313126,131.7,131.69,168.46183718]
[1763959365433,0.35313126,131.7,131.69,167.70247808]
[1763959366227,1.01313126,131.7,131.69,162.429819]
[1763959367834,0.35313126,131.7,131.69,167.05247808]
[1763959370211,0.35313126,131.7,131.69,65.05247808]
[1763959372933,1.01313126,131.7,131.69,60.429819]
[1763959375126,1.01313126,131.7,131.66,4.62265908]
[1763959375322,0.66,131.69,131.66,60.429819]
[1763959375518,0.66,131.69,131.66,65.05247808]
[1763959376039,0.66,131.69,131.67,4.62265908]
[1763959376436,0.35313126,131.7,131.68,4.62265908]
[1763959376646,0.66,131.69,131.68,4.62265908]
[1763959377216,0.35313126,131.7,131.68,4.62265908]
[1763959377534,1.17389316,131.7,131.68,4.62265908]
[1763959377915,0.66,131.69,131.68,4.62265908]
[1763959380451,0.66,131.69,131.66,61.089819]
[1763959380748,0.66,131.69,131.68,4.62265908]
[1763959380927,0.66,131.69,131.67,4.62265908]
[1763959382649,0.66,131.69,131.67,5.28265908]
[1763959382846,0.66,131.69,131.66,60.429819]
[1763959383053,0.66,131.69,131.66,65.05247808]
[1763959384152,0.66,131.69,131.67,4.62265908]
[1763959384326,0.66,131.69,131.68,4.62265908]
[1763959384635,0.3607619,131.7,131.68,4.62265908]
[1763959384834,1.0207619,131.7,131.68,4.62265908]
[1763959385352,1.0207619,131.7,131.68,65.05247808]
[1763959385950,0.66,131.69,131.68,65.05247808]
[1763959386852,0.66,131.69,131.68,60.429819]
[1763959389531,0.66,131.69,131.65,4.62265908]
[1763959390751,0.66,131.69,131.64,4.62265908]
[1763959391045,4.62265908,131.68,131.62,4.62265908]
[1763959391648,0.66,131.67,131.63,4.62265908]
[1763959392649,0.66,131.67,131.64,4.62265908]
[1763959393345,0.66,131.67,131.61,61.089819]
[1763959393531,0.66,131.67,131.63,4.62265908]
[1763959394937,4.62265908,131.66,131.61,4.62265908]
[1763959395350,5.28265908,131.65,131.6,4.62265908]
[1763959395854,0.69,131.64,131.6,4.62265908]
[1763959396444,5.31265908,131.64,131.56,60.429819]
[1763959396645,0.69,131.64,131.57,0.65]
[1763959396847,0.69,131.64,131.62,4.62265908]
[1763959397337,0.14021052,131.63,131.62,4.62265908]
[1763959397844,0.83021052,131.63,131.62,4.62265908]
[1763959400259,0.83021052,131.63,131.61,4.62265908]
[1763959401047,0.83021052,131.63,131.61,65.05247808]
[1763959402951,0.83021052,131.63,131.62,4.62265908]
[1763959404157,0.14021052,131.63,131.62,4.62265908]
[1763959404550,0.14021052,131.63,131.62,2.96111472]
[1763959404952,0.83021052,131.63,131.61,63.39093372]
[1763959405149,0.83021052,131.63,131.61,60.429819]
[1763959407675,0.14021052,131.63,131.62,0.65]
[1763959407848,0.14021052,131.63,131.62,3.61111472]
[1763959410470,0.83021052,131.63,131.61,60.429819]
[1763959410675,0.83021052,131.63,131.61,63.39093372]
[1763959411175,0.83021052,131.63,131.61,60.429819]
[1763959411872,0.83021052,131.63,131.6,64.04093372]
[1763959412278,0.83021052,131.63,131.61,2.96111472]
[1763959413089,0.14021052,131.63,131.62,3.61111472]
[1763959417379,0.29350893,131.63,131.62,3.61111472]
[1763959417815,0.29350893,131.63,131.62,64.04093372]
[1763959417991,0.29350893,131.63,131.62,71.63856325]
[1763959419179,0.29350893,131.63,131.62,72.3983262]
[1763959419487,0.15329841,131.63,131.62,72.3983262]
[1763959420180,0.15329841,131.63,131.62,64.80069667]
[1763959421691,0.15329841,131.63,131.62,72.3983262]
[1763959423685,0.15929875,131.64,131.63,60.27652059]
[1763959423883,0.15929875,131.64,131.63,63.88763531]
[1763959426381,0.15929875,131.64,131.63,64.64734054]
[1763959426702,0.15929875,131.64,131.63,180.66888045]
[1763959426884,0.15929875,131.64,131.63,179.90917522]
[1763959431782,0.15929875,131.64,131.63,172.31212288]
[1763959432513,0.13793792,131.65,131.63,179.90917522]
[1763959432696,0.13793792,131.65,131.64,4.42076224]
[1763959433018,0.1403224,131.66,131.64,64.69728283]
[1763959433316,0.14914846,131.67,131.65,7.04111472]
[1763959433620,0.14914846,131.67,131.66,3.72064684]
[1763959433780,0.1516552,131.69,131.68,18.12096]
[1763959433977,0.34444425,131.71,131.68,37.0065336]
[1763959434209,0.34444425,131.71,131.69,4.42047382]
[1763959434593,0.34444425,131.71,131.69,7.46357169]
[1763959435291,0.34444425,131.71,131.69,15.05716269]
[1763959437406,0.49879464,131.7,131.69,15.05716269]
[1763959437601,0.48460191,131.71,131.69,15.05716269]
[1763959437816,0.31002494,131.72,131.71,2.96111472]
[1763959437985,0.31002494,131.72,131.71,4.42035851]
[1763959438406,0.31002494,131.72,131.71,25.58418489]
[1763959439082,0.3477691,131.73,131.72,61.78997506]
[1763959439315,0.3477691,131.73,131.72,65.45108978]
[1763959439490,0.3477691,131.73,131.72,73.0429513]
[1763959440409,0.3477691,131.73,131.72,77.18213745]
[1763959440626,0.1633252,131.74,131.72,77.18213745]
[1763959440911,0.16506074,131.75,131.74,18.12096]
[1763959441120,0.16506074,131.75,131.74,25.92114561]
[1763959441624,0.16506074,131.75,131.74,33.51185458]
[1763959442185,0.1633246,131.77,131.75,0.7]
[1763959442385,0.36213649,131.79,131.78,18.12096]
[1763959442622,0.2,131.83,131.78,25.14207472]
[1763959442782,0.2,131.83,131.79,21.78207472]
[1763959443112,0.2,131.83,131.8,18.1655736]
[1763959443414,1.99999999,131.97,131.8,18.1655736]
[1763959443415,0.1,131.87,131.83,18.12096]
[1763959443584,0.1,131.87,131.84,33.32541888]
[1763959443782,0.1,131.87,131.84,40.91016977]
[1763959444015,0.1,131.87,131.85,0.7]
[1763959444227,0.1,131.87,131.86,3.36]
[1763959445718,0.76,131.87,131.86,3.36]
[1763959446390,0.1,131.87,131.86,3.36]
[1763959447304,0.1,131.87,131.86,11.643801]
[1763959447609,0.66,131.93,131.88,18.12096]
[1763959447835,0.66,131.93,131.91,2.96111472]
[1763959448493,0.66,131.93,131.9,2.96111472]
[1763959448815,0.66,131.93,131.89,2.96111472]
[1763959449487,2.96111472,131.92,131.85,18.12096]
[1763959449685,2.96111472,131.92,131.87,2.96111472]
[1763959449906,0.66,131.91,131.87,2.96111472]
[1763959450412,0.66,131.91,131.9,21.08207472]
[1763959451907,0.66,131.91,131.9,18.12096]
[1763959452114,0.66,131.91,131.9,21.08207472]
[1763959452609,0.66,131.91,131.9,18.12096]
[1763959452808,0.66,131.91,131.89,2.96111472]
[1763959453113,0.66,131.91,131.88,2.96111472]
[1763959453898,0.66,131.91,131.87,2.96111472]
[1763959454089,0.66,131.91,131.87,21.08207472]
[1763959454519,0.66,131.91,131.87,25.03469092]
[1763959455396,1.99999999,132.0,131.9,25.03469092]
[1763959455609,6.91373092,131.97,131.92,6.91373092]
[1763959456118,0.71,131.96,131.92,6.91373092]
[1763959456517,0.71,131.96,131.9,18.83096]
[1763959456699,0.71,131.96,131.94,6.91373092]
[1763959457127,0.71,131.96,131.95,6.91373092]
[1763959457499,0.86767252,131.96,131.95,6.91373092]
[1763959458929,0.86767252,131.96,131.94,6.91373092]
[1763959460416,0.86767252,131.96,131.93,18.12096]
[1763959460729,0.86767252,131.96,131.93,25.03469092]
[1763959460931,0.86767252,131.96,131.92,6.91373092]
[1763959461312,6.91373092,131.95,131.9,6.91373092]
[1763959461702,0.71,131.94,131.9,6.91373092]
[1763959462604,0.71,131.94,131.91,6.91373092]
[1763959462804,0.15767252,131.96,131.93,6.91373092]
[1763959463031,0.86767252,131.96,131.94,6.91373092]
[1763959463201,0.86767252,131.96,131.93,6.91373092]
[1763959463406,0.86767252,131.96,131.92,6.91373092]
[1763959464837,0.86767252,131.96,131.93,6.91373092]
[1763959465507,0.86767252,131.96,131.92,25.03469092]
[1763959465707,0.86767252,131.96,131.91,6.91373092]
[1763959465708,7.78140344,131.96,131.91,6.91373092]
[1763959466140,0.71,131.95,131.91,6.91373092]
[1763959466631,0.71,131.95,131.91,11.76361575]
[1763959467812,0.71,131.95,131.92,11.76361575]
[1763959468121,0.71,131.95,131.91,11.76361575]
[1763959468823,11.76361575,131.93,131.85,62.1]
[1763959469146,0.71,131.92,131.88,11.76361575]
[1763959471537,0.71,131.92,131.89,11.76361575]
[1763959471740,0.71,131.92,131.88,11.76361575]
[1763959472541,0.71,131.92,131.86,18.12096]
[1763959472542,12.47361575,131.92,131.87,11.76361575]
[1763959473041,0.71,131.91,131.87,11.76361575]
[1763959473917,11.76361575,131.9,131.86,11.76361575]
[1763959474123,11.76361575,131.9,131.85,11.76361575]
[1763959474328,0.71,131.89,131.85,11.76361575]
[1763959475850,11.76361575,131.87,131.81,3.36]
[1763959476150,11.76361575,131.87,131.82,11.76361575]
[1763959476328,0.71,131.86,131.82,11.76361575]
[1763959477554,0.13771187,131.83,131.82,11.76361575]
[1763959480675,0.84771187,131.83,131.8,11.76361575]
[1763959486243,0.84771187,131.83,131.8,73.86361575]
[1763959486452,0.13771187,131.83,131.82,11.76361575]
[1763959488549,0.13771187,131.83,131.82,12.43361575]
[1763959488965,0.13771187,131.83,131.82,13.19222597]
[1763959489768,0.13771187,131.83,131.82,16.55222597]
[1763959492360,0.13771187,131.83,131.82,86.23832823]
[1763959495354,0.13771187,131.83,131.82,74.62222597]
[1763959495559,0.13771187,131.83,131.82,73.86361575]
[1763959495970,0.13771187,131.83,131.82,62.1]
[1763959496266,0.13771187,131.83,131.82,73.86361575]
[1763959496588,0.13771187,131.83,131.82,66.71251366]
[1763959497246,0.13771187,131.83,131.82,177.72722614]
[1763959497451,0.27584917,131.83,131.82,176.96861592]
[1763959498259,0.27584917,131.83,131.82,74.96861592]
[1763959498551,0.27584917,131.83,131.82,75.72722614]
[1763959499466,0.1381373,131.83,131.82,75.72722614]
[1763959500658,0.1381373,131.83,131.78,62.77]
[1763959500659,0.8581373,131.83,131.78,62.77]
[1763959500865,0.8581373,131.83,131.81,4.61251366]
[1763959501351,0.1381373,131.83,131.82,4.61251366]
[1763959501974,0.8581373,131.83,131.82,4.61251366]
[1763959505580,0.8581373,131.83,131.76,0.67]
[1763959505751,5.47065096,131.83,131.78,4.61251366]
[1763959505953,0.8581373,131.83,131.79,22.73347366]
[1763959506180,0.1381373,131.83,131.82,4.61251366]
[1763959507868,0.8581373,131.83,131.82,4.61251366]
[1763959509061,0.1381373,131.83,131.82,4.61251366]
[1763959510556,0.8581373,131.83,131.82,4.61251366]
[1763959511165,0.8581373,131.83,131.8,18.12096]
[1763959511370,0.1381373,131.83,131.82,4.61251366]
[1763959511884,0.1381373,131.83,131.82,5.28251366]
[1763959512182,0.1381373,131.83,131.82,4.61251366]
[1763959515360,0.8581373,131.83,131.82,4.61251366]
[1763959515761,0.1381373,131.83,131.82,4.61251366]
[1763959516070,0.15546866,131.84,131.82,79.47290676]
[1763959516276,0.14799949,131.85,131.84,18.12096]
[1763959516482,0.14799949,131.85,131.84,28.04598732]
[1763959516868,0.14312864,131.86,131.84,28.04598732]
[1763959517194,0.14312864,131.86,131.85,9.43095127]
[1763959517563,0.30897186,131.86,131.85,9.43095127]
[1763959518011,0.30897186,131.86,131.85,5.37095127]
[1763959518289,0.30897186,131.86,131.85,4.61251366]
[1763959518660,0.99897186,131.86,131.85,4.61251366]
[1763959518880,0.30897186,131.86,131.85,4.61251366]
[1763959519278,0.16584322,131.86,131.85,4.61251366]
[1763959520873,0.16584322,131.86,131.85,24.19191127]
[1763959521475,0.16584322,131.86,131.85,13.65532745]
[1763959521888,0.15464377,131.88,131.87,79.77623253]
[1763959522081,0.15464377,131.88,131.87,84.38874619]
[1763959524698,0.15464377,131.88,131.87,66.26778619]
[1763959525084,0.84464377,131.88,131.87,61.65527253]
[1763959525284,0.84464377,131.88,131.87,66.26778619]
[1763959526397,0.84464377,131.88,131.87,61.65527253]
[1763959527301,0.84464377,131.88,131.87,64.60549646]
[1763959529282,0.84464377,131.88,131.87,2.95022393]
[1763959530398,0.84464377,131.88,131.86,2.95022393]
[1763959531096,0.84464377,131.88,131.87,2.95022393]
[1763959531397,0.15464377,131.88,131.87,2.95022393]
[1763959531601,0.84464377,131.88,131.85,79.77623253]
[1763959531775,0.84464377,131.88,131.87,2.95022393]
[1763959532204,0.15464377,131.88,131.87,65.30549646]
[1763959532491,0.15464377,131.88,131.87,66.06381905]
[1763959532692,0.14809529,131.89,131.88,2.95022393]
[1763959532919,0.14809529,131.89,131.88,7.01022393]
[1763959535678,0.14809529,131.89,131.88,6.31022393]
[1763959536407,0.14809529,131.89,131.88,25.13118393]
[1763959536713,0.14809529,131.89,131.88,91.51195948]
[1763959537094,0.14809529,131.89,131.88,92.27022456]
[1763959537290,0.14809529,131.89,131.88,99.85287545]
[1763959537487,0.29834199,131.89,131.88,99.85287545]
[1763959539299,0.1502467,131.89,131.88,99.85287545]
[1763959542094,0.1502467,131.89,131.88,92.1771485]
[1763959542299,0.1502467,131.89,131.88,99.85287545]
[1763959542593,0.15141426,131.92,131.91,61.18236194]
[1763959542814,0.84141426,131.92,131.91,61.18236194]
[1763959543001,0.84141426,131.92,131.91,68.85808889]
[1763959543208,0.15141426,131.92,131.91,172.31618152]
[1763959543386,0.15141426,131.92,131.91,171.55808889]
[1763959543888,0.15141426,131.92,131.91,170.85808889]
[1763959545431,0.81141426,131.92,131.91,170.85808889]
[1763959546110,0.15141426,131.92,131.91,170.85808889]
[1763959546409,0.81141426,131.92,131.91,170.85808889]
[1763959547400,0.81141426,131.92,131.91,163.18236194]
[1763959548399,0.81141426,131.92,131.91,61.18236194]
[1763959549324,0.81141426,131.92,131.91,68.85808889]
[1763959550200,0.15141426,131.92,131.91,68.85808889]
[1763959551121,0.15141426,131.92,131.91,69.54808889]
[1763959551296,0.15141426,131.92,131.91,68.85808889]
[1763959555900,0.15141426,131.92,131.91,61.18236194]
[1763959556120,0.15141426,131.92,131.91,68.85808889]
[1763959556518,0.15141426,131.92,131.91,64.12970539]
[1763959557401,0.31542756,131.92,131.91,64.12970539]
[1763959558413,0.31542756,131.92,131.91,64.81970539]
[1763959558814,0.31542756,131.92,131.91,64.12970539]
[1763959559024,0.31542756,131.92,131.91,72.40063177]
[1763959559398,0.15495845,131.94,131.93,60.58092277]
[1763959559605,0.81495845,131.94,131.93,63.52826622]
[1763959559905,0.15495845,131.94,131.93,63.52826622]
[1763959560101,0.15495845,131.94,131.93,82.33922622]
[1763959560330,0.15495845,131.94,131.93,11.2171206]
[1763959560510,0.1544945,131.95,131.94,21.06830345]
[1763959560719,0.1544945,131.95,131.94,25.87622371]
[1763959561008,0.14649087,131.97,131.95,0.69]
[1763959561247,0.14649087,131.97,131.96,7.06514884]
[1763959561601,0.14649087,131.97,131.96,7.75514884]
[1763959561805,0.80649087,131.97,131.92,68.85119083]
[1763959562000,0.80649087,131.97,131.92,63.94092277]
[1763959562234,0.80649087,131.97,131.95,2.94734345]
[1763959562433,0.80649087,131.97,131.92,3.36]
[1763959562727,3.75383432,131.97,131.92,2.94734345]
[1763959562962,3.75383432,131.97,131.91,3.36]
[1763959563106,0.66,131.96,131.92,2.94734345]
[1763959564536,0.66,131.96,131.93,2.94734345]
[1763959564739,0.66,131.96,131.94,2.94734345]
[1763959565652,0.66,131.96,131.93,2.94734345]
[1763959566434,0.66,131.96,131.91,2.94734345]
[1763959566643,0.66,131.96,131.92,2.94734345]
[1763959567043,0.66,131.96,131.91,2.94734345]
[1763959567238,0.66,131.96,131.92,2.94734345]
[1763959567453,0.66,131.96,131.93,2.94734345]
[1763959569341,0.66,131.96,131.87,18.81096]
[1763959569554,0.66,131.96,131.9,2.94734345]
[1763959570056,0.66,131.96,131.92,2.94734345]
[1763959571057,0.66,131.96,131.91,2.94734345]
[1763959571236,0.66,131.96,131.93,2.94734345]
[1763959574165,0.66,131.96,131.92,2.94734345]
[1763959575343,0.66,131.96,131.92,63.52826622]
[1763959576345,0.66,131.96,131.92,60.58092277]
[1763959576664,3.60734345,131.96,131.92,60.58092277]
[1763959576857,0.66,131.96,131.92,60.58092277]
[1763959577067,0.69,131.95,131.92,60.58092277]
[1763959577564,0.13823956,131.93,131.92,60.58092277]
[1763959577939,0.82823956,131.93,131.92,60.58092277]
[1763959578342,0.82823956,131.93,131.91,2.94734345]
[1763959578547,0.82823956,131.93,131.89,78.70188277]
[1763959578743,2.94734345,131.91,131.85,3.36]
[1763959578943,2.94734345,131.91,131.86,2.94734345]
[1763959579149,0.69,131.9,131.86,2.94734345]
[1763959579374,0.69,131.9,131.86,21.06830345]
[1763959580147,0.69,131.9,131.86,2.94734345]
[1763959580352,0.69,131.9,131.87,2.94734345]
[1763959580570,0.69,131.9,131.89,2.94734345]
[1763959581955,0.69,131.9,131.87,0.72]
[1763959582750,0.69,131.9,131.85,3.36]
[1763959583070,0.69,131.9,131.86,0.72]
[1763959583764,0.69,131.9,131.85,3.36]
[1763959584162,0.69,131.9,131.86,2.94734345]
[1763959586049,0.69,131.9,131.87,2.94734345]
[1763959586770,0.69,131.9,131.87,4.60956378]
[1763959587860,0.69,131.9,131.86,4.60956378]
[1763959588350,0.69,131.9,131.85,7.96956378]
[1763959588552,4.60956378,131.89,131.84,4.60956378]
[1763959588755,4.60956378,131.88,131.83,4.60956378]
[1763959589056,23.42052378,131.89,131.84,4.60956378]
[1763959589256,4.60956378,131.9,131.85,4.60956378]
[1763959589465,5.29956378,131.9,131.85,4.60956378]
[1763959589669,23.42052378,131.89,131.84,4.60956378]
[1763959589874,4.60956378,131.86,131.81,4.60956378]
[1763959590254,0.69,131.85,131.81,4.60956378]
[1763959591168,0.69,131.85,131.82,4.60956378]
[1763959591364,0.69,131.85,131.83,4.60956378]
[1763959596077,0.69,131.89,131.84,5.32956378]
[1763959596270,0.69,131.88,131.86,4.60956378]
[1763959596456,0.69,131.88,131.87,4.60956378]
[1763959596657,18.12096,131.92,131.87,4.60956378]
[1763959596873,0.69,131.9,131.87,4.60956378]
[1763959597491,0.14259322,131.89,131.88,4.60956378]
[1763959598186,0.83259322,131.89,131.88,4.60956378]
[1763959598586,0.14259322,131.89,131.88,4.60956378]
[1763959599872,0.14259322,131.89,131.86,0.72]
[1763959600081,0.14259322,131.89,131.88,4.60956378]
[1763959600261,0.14259322,131.89,131.87,4.60956378]
[1763959600463,0.83259322,131.89,131.87,4.60956378]
[1763959601472,0.14259322,131.89,131.87,4.60956378]
[1763959601665,0.14259322,131.89,131.88,4.60956378]
[1763959603465,0.14259322,131.89,131.88,65.19048655]
[1763959604284,0.14259322,131.89,131.88,197.73236252]
[1763959604591,0.14259322,131.89,131.88,83.31144655]
[1763959604795,0.14259322,131.89,131.88,4.60956378]
[1763959604963,0.14259322,131.89,131.88,5.32956378]
[1763959605168,0.86259322,131.89,131.87,4.60956378]
[1763959608096,0.14259322,131.89,131.87,4.60956378]
[1763959608302,0.14259322,131.89,131.88,4.60956378]
[1763959609792,0.80259322,131.89,131.88,4.60956378]
[1763959610001,0.14259322,131.89,131.88,4.60956378]
[1763959610892,0.14259322,131.89,131.88,65.19048655]
[1763959613027,0.80259322,131.89,131.88,60.58092277]
[1763959615813,0.14259322,131.89,131.88,60.58092277]
[1763959617205,0.80259322,131.89,131.88,60.58092277]
[1763959617421,0.14259322,131.89,131.88,65.90048655]
[1763959617594,0.28521557,131.89,131.88,65.19048655]
[1763959618789,0.28521557,131.89,131.88,60.58092277]
[1763959619089,0.28521557,131.89,131.88,65.19048655]
[1763959619310,0.28521557,131.89,131.88,60.58092277]
[1763959619311,0.80262235,131.89,131.88,60.58092277]
[1763959619903,0.14262235,131.89,131.88,60.58092277]
[1763959620202,0.80262235,131.89,131.88,60.58092277]
[1763959620595,0.14262235,131.89,131.88,65.90048655]
[1763959620921,0.14262235,131.89,131.88,65.19048655]
[1763959621389,0.80262235,131.89,131.86,60.58092277]
[1763959621591,0.80262235,131.89,131.84,4.60956378]
[1763959621789,4.60956378,131.88,131.82,4.60956378]
[1763959622219,23.39052378,131.87,131.82,4.60956378]
[1763959622721,0.66,131.86,131.84,4.60956378]
[1763959622919,0.80262235,131.89,131.85,4.60956378]
[1763959623224,0.80262235,131.89,131.81,83.53055054]
[1763959623225,0.66,131.88,131.81,83.53055054]
[1763959623525,23.39052378,131.88,131.83,4.60956378]
[1763959624020,0.66,131.87,131.84,4.60956378]
[1763959624494,0.66,131.87,131.85,4.60956378]
[1763959627117,0.66,131.87,131.84,4.60956378]
[1763959628308,0.66,131.87,131.83,0.71]
[1763959628513,0.66,131.87,131.84,4.60956378]
[1763959628713,0.66,131.87,131.84,65.19048655]
[1763959629007,5.26956378,131.87,131.81,3.36]
[1763959629213,5.26956378,131.87,131.82,4.60956378]
[1763959629390,0.66,131.86,131.82,4.60956378]
[1763959629594,0.66,131.86,131.81,4.07]
[1763959629595,0.66,131.87,131.84,4.60956378]
[1763959632302,0.66,131.87,131.83,4.60956378]
[1763959632494,0.66,131.87,131.84,4.60956378]
[1763959633828,0.66,131.87,131.81,60.58092277]
[1763959633829,5.26956378,131.87,131.81,60.58092277]
[1763959633996,5.26956378,131.87,131.81,65.19048655]
[1763959634203,0.66,131.86,131.81,65.19048655]
[1763959634999,0.66,131.86,131.81,65.90048655]
[1763959635201,0.66,131.86,131.82,4.60956378]
[1763959635824,0.66,131.86,131.81,65.19048655]
[1763959637407,5.26956378,131.86,131.81,65.19048655]
[1763959637611,0.14754982,131.82,131.81,65.19048655]
[1763959638395,0.14754982,131.82,131.81,65.91048655]
[1763959639642,0.14754982,131.82,131.81,65.19048655]
[1763959640915,0.14754982,131.82,131.81,4.60956378]
[1763959641113,0.14754982,131.82,131.79,22.40096]
[1763959641114,0.82754982,131.82,131.79,8.16956378]
[1763959641347,0.82754982,131.82,131.79,0.2]
[1763959641517,0.82754982,131.82,131.79,4.80956378]
[1763959642811,0.82754982,131.82,131.79,0.2]
[1763959643018,4.60956378,131.8,131.79,0.2]
[1763959643419,5.28956378,131.8,131.79,0.2]
[1763959643617,5.28956378,131.8,131.74,0.2]
[1763959643830,20.26850981,131.82,131.74,0.2]
[1763959643831,4.60956378,131.77,131.74,0.2]
[1763959644038,22.73052378,131.78,131.74,0.2]
[1763959644370,5.28956378,131.77,131.74,0.2]
[1763959644644,4.60956378,131.76,131.74,0.2]
[1763959644813,5.28956378,131.76,131.74,0.2]
[1763959645015,0.68,131.75,131.74,0.2]
[1763959645415,0.68,131.77,131.74,0.2]
[1763959647462,18.12096,131.74,131.73,0.2]
[1763959647643,22.73052378,131.74,131.73,0.2]
[1763959647938,23.41052378,131.74,131.73,0.2]
[1763959648147,23.41052378,131.74,131.69,0.2]
[1763959648352,4.60956378,131.7,131.69,0.2]
[1763959648524,2.95976906,131.7,131.69,0.2]
[1763959648843,0.68,131.7,131.69,0.2]
[1763959649229,3.63976906,131.7,131.69,0.2]
[1763959649440,21.76072906,131.7,131.69,0.2]
[1763959649916,3.63976906,131.7,131.69,0.2]
[1763959650123,21.76072906,131.7,131.69,0.2]
[1763959650733,3.63976906,131.7,131.69,0.2]
[1763959650943,21.76072906,131.7,131.69,0.2]
[1763959651547,3.63976906,131.7,131.69,0.2]
[1763959652626,21.76072906,131.7,131.69,0.2]
[1763959652831,3.63976906,131.7,131.69,0.2]
[1763959653126,21.76072906,131.7,131.69,0.2]
[1763959654322,5.63976905,131.7,131.69,0.2]
[1763959654533,5.63976905,131.7,131.67,0.2]
[1763959654534,8.59953811,131.69,131.67,0.2]
[1763959654731,27.40049812,131.68,131.67,0.2]
[1763959654929,28.08049812,131.68,131.67,0.2]
[1763959655135,18.12096,131.65,131.57,0.72]
[1763959655335,2.95976906,131.61,131.57,0.72]
[1763959655725,3.63976906,131.61,131.57,0.72]
[1763959656142,2.95976906,131.62,131.57,3.67976906]
[1763959656345,6.31976906,131.62,131.57,3.67976906]
[1763959656533,3.36,131.65,131.61,2.95976906]
[1763959656930,4.04,131.65,131.61,3.67976906]
[1763959657526,0.14809616,131.62,131.61,3.67976906]
[1763959658554,0.14809616,131.62,131.61,7.66012148]
[1763959660040,0.14809616,131.62,131.61,0.72]
[1763959662049,0.14809616,131.62,131.61,8.31820682]
[1763959662236,0.14809616,131.62,131.61,19.60078068]
[1763959662441,0.14809616,131.62,131.61,26.54090216]
[1763959666346,0.14809616,131.62,131.61,34.13910898]
[1763959666941,0.14809616,131.62,131.61,26.54090216]
[1763959669257,0.14809616,131.62,131.61,6.94012148]
[1763959669572,0.86809616,131.62,131.59,6.94012148]
[1763959669782,0.86809616,131.62,131.58,10.95012148]
[1763959670275,0.14809616,131.62,131.59,7.59012148]
[1763959670650,0.86809616,131.62,131.59,0.65]
[1763959670965,0.86809616,131.62,131.59,7.59012148]
[1763959671152,0.14809616,131.62,131.59,7.59012148]
[1763959672449,0.14809616,131.62,131.6,7.59012148]
[1763959672644,0.14809616,131.62,131.59,6.94012148]